bitfinex/quotes_BTCUSD_20241128
["timestamp","ask_amount","ask_price","bid_price","bid_amount"]
[1732765054229,0.003,94985.0,94984.0,0.23143273]
[1732765054499,0.001,94985.0,94984.0,0.23143273]
[1732765054720,0.001,94985.0,94984.0,0.23043273]
[1732765054937,0.105264,95000.0,94984.0,0.12515273]
[1732765055146,0.105264,95000.0,94985.0,0.10284521]
[1732765055383,0.210513,95006.0,94985.0,0.20812421]
[1732765055384,0.105271,94993.0,94985.0,0.20812421]
[1732765055624,0.00523772,94992.0,94987.0,0.105276]
[1732765055863,0.00523772,94992.0,94989.0,0.105274]
[1732765056088,0.01,94997.0,94990.0,0.10284521]
[1732765056338,0.105267,94996.0,94991.0,0.03678509]
[1732765056566,0.00524207,94996.0,94995.0,0.105268]
[1732765056805,0.01,95005.0,94995.0,0.10284521]
[1732765057018,0.01,95026.0,94986.0,0.210557]
[1732765057019,0.115257,95006.0,94999.0,0.105264]
[1732765057253,0.00525077,95004.0,95001.0,0.210524]
[1732765057532,0.00525186,95005.0,95002.0,0.10284521]
[1732765057773,0.01,95006.0,95002.0,0.10284521]
[1732765057986,0.01,95006.0,95003.0,0.04186372]
[1732765058225,0.00525186,95005.0,95003.0,0.14470893]
[1732765058682,0.105258,95004.0,95003.0,0.14470893]
[1732765058915,0.105258,95004.0,95003.0,0.10284521]
[1732765059591,0.00525077,95004.0,95003.0,0.10284521]
[1732765060280,0.00525077,95004.0,95003.0,0.10384521]
[1732765060489,0.00525077,95004.0,95003.0,0.22157907]
[1732765060925,0.001,95005.0,95003.0,0.11632007]
[1732765061163,0.001,95005.0,95004.0,0.105258]
[1732765061436,0.105252,95010.0,95004.0,0.105258]
[1732765061653,0.01,95006.0,95005.0,0.02424815]
[1732765062096,0.01,95008.0,95005.0,0.02424815]
[1732765062321,0.01,95014.0,95007.0,0.21051]
[1732765062532,0.01,95025.0,95008.0,0.13795303]
[1732765062744,0.01,95030.0,95021.0,0.105238]
[1732765062992,0.01,95023.0,95015.0,0.210492]
[1732765063202,0.01,95023.0,95016.0,0.12389441]
[1732765063424,0.10524,95021.0,95016.0,0.10284521]
[1732765063634,0.01,95023.0,95017.0,0.105243]
[1732765063843,0.115237,95023.0,95018.0,0.10284521]
[1732765064330,0.01,95025.0,95018.0,0.10284521]
[1732765064548,0.115236,95025.0,95019.0,0.01028452]
[1732765064774,0.115236,95025.0,95020.0,0.10284521]
[1732765065458,0.003,95023.0,95020.0,0.10284521]
[1732765065683,0.105239,95021.0,95020.0,0.10284521]
[1732765065935,0.105239,95021.0,95020.0,0.11629422]
[1732765066370,0.01,95025.0,95020.0,0.11629422]
[1732765066584,0.0017142,95023.0,95022.0,0.105238]
[1732765066802,0.0017142,95023.0,95022.0,0.20808321]
[1732765067019,0.0017142,95023.0,95022.0,0.10284521]
[1732765067254,0.1069512,95023.0,95022.0,0.01376545]
[1732765067468,0.1069512,95023.0,95019.0,0.02136032]
[1732765067680,0.11504278,95023.0,95020.0,0.10284521]
[1732765067946,0.00980578,95023.0,95009.0,0.105252]
[1732765068162,0.00980578,95023.0,95005.0,0.02424815]
[1732765068163,0.105252,95010.0,95005.0,0.02424815]
[1732765068394,0.10525,95011.0,95005.0,0.12950515]
[1732765068629,0.00807182,95010.0,95006.0,0.03400302]
[1732765069075,0.105251,95011.0,95006.0,0.03400302]
[1732765069307,0.00808229,95009.0,95007.0,0.13782371]
[1732765069523,0.0080754,95010.0,95007.0,0.13782371]
[1732765069805,0.115254,95008.0,95007.0,0.0349785]
[1732765069996,0.01,95008.0,94985.0,0.105279]
[1732765070210,0.210486,95018.0,94986.0,0.10284521]
[1732765070211,0.105274,94990.0,94986.0,0.10284521]
[1732765070454,0.01,95000.0,94986.0,0.10284521]
[1732765070455,0.315798,94997.0,94996.0,0.02054616]
[1732765070675,0.105266,94997.0,94996.0,0.10284521]
[1732765070911,0.105266,94997.0,94996.0,0.11312973]
[1732765071360,0.115266,94997.0,94996.0,0.01028452]
[1732765071577,0.01,94991.0,94989.0,0.02110476]
[1732765072021,0.210536,94996.0,94989.0,0.02110476]
[1732765072231,0.105272,94992.0,94989.0,0.02110476]
[1732765072450,0.105271,94993.0,94989.0,0.02110476]
[1732765072670,0.210536,94996.0,94989.0,0.02110476]
[1732765072671,0.105274,94990.0,94989.0,0.02110476]
[1732765073333,0.105269,94995.0,94989.0,0.02110476]
[1732765073561,0.105268,94995.0,94989.0,0.02310476]
[1732765073806,0.10527,94994.0,94990.0,0.02439984]
[1732765074030,0.01,94997.0,94990.0,0.02439984]
[1732765074267,0.01,94998.0,94991.0,0.10284521]
[1732765074471,0.115265,94998.0,94993.0,0.10527]
[1732765074714,0.115265,94998.0,94992.0,0.05714538]
[1732765074715,0.01,95005.0,94994.0,0.10284521]
[1732765074935,0.01,95005.0,94990.0,0.02439984]
[1732765074936,0.01,95017.0,94995.0,0.10284521]
[1732765075159,0.105245,95016.0,94997.0,0.210532]
[1732765075376,0.01,95017.0,94998.0,0.10284521]
[1732765075377,0.105246,95015.0,94998.0,0.10284521]
[1732765075628,0.105246,95016.0,95010.0,0.105251]
[1732765075840,0.105246,95015.0,95010.0,0.105251]
[1732765076049,0.001,95005.0,95004.0,0.105258]
[1732765076258,0.001,95005.0,95004.0,0.20810321]
[1732765076926,0.001,95005.0,95004.0,0.10284521]
[1732765077350,0.105255,95007.0,95004.0,0.10284521]
[1732765077585,0.105256,95006.0,95005.0,0.15019109]
[1732765077797,0.11191628,95006.0,95005.0,0.04734588]
[1732765078029,0.115257,95005.0,95004.0,0.005]
[1732765078252,0.116257,95005.0,95004.0,0.011]
[1732765078464,0.12291547,95005.0,95004.0,0.005]
[1732765079102,0.105271,94993.0,94988.0,0.02105004]
[1732765079324,0.01665847,95005.0,94989.0,0.02324676]
[1732765079588,0.0066349,94992.0,94989.0,0.02324676]
[1732765079805,0.00663308,94991.0,94989.0,0.02324676]
[1732765080034,0.105274,94990.0,94989.0,0.02324676]
[1732765080260,0.210521,95002.0,94988.0,0.02105004]
[1732765080502,0.00663127,94990.0,94988.0,0.02105004]
[1732765080729,0.105275,94989.0,94988.0,0.02105004]
[1732765080941,0.00662946,94989.0,94988.0,0.02105004]
[1732765081418,0.00662946,94989.0,94988.0,0.12632604]
[1732765081644,0.001,94991.0,94988.0,0.02105004]
[1732765081874,0.105275,94989.0,94988.0,0.02405004]
[1732765082139,0.01663127,94990.0,94988.0,0.02105004]
[1732765082375,0.00662946,94989.0,94988.0,0.12732604]
[1732765082616,0.01,95004.0,94990.0,0.210548]
[1732765082829,0.210505,95010.0,94988.0,0.12489525]
[1732765082830,0.01,95007.0,94991.0,0.14590122]
[1732765083062,0.01665484,95003.0,94997.0,0.105266]
[1732765083289,0.210513,95006.0,94994.0,0.210539]
[1732765083290,0.105261,95002.0,94994.0,0.210539]
[1732765083590,0.105261,95002.0,94995.0,0.10284521]
[1732765083591,0.00665303,95002.0,94995.0,0.10284521]
[1732765083817,0.105253,95009.0,95003.0,0.105258]
[1732765084033,0.105253,95009.0,94996.0,0.14203266]
[1732765084034,0.002,95007.0,94996.0,0.14203266]
[1732765084254,0.105265,94998.0,94997.0,0.07853327]
[1732765084470,0.21717428,95006.0,94991.0,0.09426025]
[1732765084737,0.00664578,94998.0,94997.0,0.105266]
[1732765084969,0.105262,95001.0,94995.0,0.105268]
[1732765085178,0.105263,95000.0,94993.0,0.09426025]
[1732765085422,0.0066494,95000.0,94994.0,0.17870665]
[1732765085875,0.210519,95003.0,94994.0,0.17870665]
[1732765086113,0.00664759,94999.0,94996.0,0.105267]
[1732765086346,0.01,95002.0,94996.0,0.105266]
[1732765086347,0.115261,95002.0,94996.0,0.105266]
[1732765086592,0.11191078,94998.0,94994.0,0.17870665]
[1732765086808,0.105268,94995.0,94994.0,0.10384521]
[1732765087035,0.00665517,94995.0,94994.0,0.10384521]
[1732765087270,0.11192317,94995.0,94994.0,0.10284521]
[1732765087480,0.105266,94997.0,94994.0,0.13519262]
[1732765087694,0.105266,94997.0,94996.0,0.001]
[1732765088582,0.115266,94997.0,94996.0,0.001]
[1732765089045,0.115279,94985.0,94984.0,0.0008566]
[1732765089288,0.26760852,94985.0,94984.0,0.0008566]
[1732765089511,0.265279,94985.0,94984.0,0.0008566]
[1732765090699,0.272279,94985.0,94984.0,0.0018566]
[1732765090918,0.272279,94985.0,94984.0,0.0008566]
[1732765090919,0.265279,94985.0,94984.0,0.0008566]
[1732765091183,0.265279,94985.0,94984.0,0.0018566]
[1732765091397,0.37712421,94985.0,94984.0,0.0018566]
[1732765091615,0.36812421,94985.0,94984.0,0.0008566]
[1732765091834,0.36812421,94985.0,94984.0,0.0018566]
[1732765091835,0.37512421,94985.0,94984.0,0.0018566]
[1732765092489,0.38112421,94985.0,94984.0,0.0028566]
[1732765092920,0.40412421,94985.0,94984.0,0.0018566]
[1732765093161,0.39112421,94985.0,94984.0,0.0008566]
[1732765093376,0.39712421,94985.0,94984.0,0.0028566]
[1732765093605,0.40612421,94985.0,94984.0,0.0028566]
[1732765093820,0.39112421,94985.0,94984.0,0.0008566]
[1732765094029,0.39112421,94985.0,94984.0,0.0018566]
[1732765094260,0.40812421,94985.0,94984.0,0.0028566]
[1732765094481,0.40812421,94985.0,94984.0,0.0018566]
[1732765094690,0.41712421,94985.0,94984.0,0.0028566]
[1732765095178,0.41134937,94985.0,94984.0,0.0018566]
[1732765095632,0.40334937,94985.0,94984.0,0.0008566]
[1732765095872,0.43134937,94985.0,94984.0,6e-07]
[1732765096090,0.42134937,94985.0,94984.0,6e-07]
[1732765096312,0.105289,94976.0,94975.0,0.0008557]
[1732765096569,0.265289,94976.0,94975.0,0.0008557]
[1732765097061,0.36813421,94976.0,94975.0,0.0008557]
[1732765097273,0.41113421,94976.0,94975.0,0.0008557]
[1732765097510,0.41613421,94976.0,94975.0,0.0008557]
[1732765097740,0.42513421,94976.0,94975.0,0.0018557]
[1732765097955,0.41613421,94976.0,94975.0,0.0008557]
[1732765098195,0.43158875,94976.0,94975.0,0.0018557]
[1732765098903,0.42658875,94976.0,94975.0,0.0018557]
[1732765099141,0.42658875,94976.0,94975.0,0.0028557]
[1732765099142,0.43258875,94976.0,94975.0,0.0028557]
[1732765099365,0.42358875,94976.0,94975.0,0.0018557]
[1732765099621,0.41758875,94976.0,94975.0,0.0008557]
[1732765099832,0.42658875,94976.0,94975.0,0.0018557]
[1732765100048,0.43558875,94976.0,94975.0,0.0018557]
[1732765100295,0.43558875,94976.0,94975.0,0.0028557]
[1732765100296,0.44458875,94976.0,94975.0,0.0028557]
[1732765100530,0.42658875,94976.0,94975.0,0.0018557]
[1732765101018,0.44458875,94976.0,94975.0,0.0038557]
[1732765101245,0.42658875,94976.0,94975.0,0.0018557]
[1732765102349,0.42658875,94976.0,94975.0,0.0008557]
[1732765102350,0.41758875,94976.0,94975.0,0.0008557]
[1732765102569,0.42658875,94976.0,94975.0,0.0018557]
[1732765103037,0.41758875,94976.0,94975.0,0.0008557]
[1732765103253,0.42658875,94976.0,94975.0,0.0018557]
[1732765103719,0.42658875,94976.0,94975.0,0.0028557]
[1732765103936,0.43558875,94976.0,94975.0,0.0028557]
[1732765104202,1.13558875,94976.0,94975.0,0.0028557]
[1732765104428,1.15478453,94976.0,94975.0,0.0028557]
[1732765105289,1.15478453,94976.0,94975.0,7e-07]
[1732765105733,0.1353,94966.0,94965.0,0.0008557]
[1732765105992,0.26347584,94966.0,94965.0,0.0008557]
[1732765106244,0.26753328,94966.0,94965.0,0.0008557]
[1732765106932,0.97453328,94966.0,94965.0,0.0018557]
[1732765107619,1.00272906,94966.0,94965.0,0.0028557]
[1732765107849,0.24053328,94966.0,94965.0,0.0028557]
[1732765108081,0.03238807,94966.0,94965.0,0.0028557]
[1732765108519,0.13768807,94966.0,94965.0,0.0028557]
[1732765108760,0.13768807,94966.0,94965.0,0.01367207]
[1732765108964,0.13068807,94966.0,94965.0,0.0018557]
[1732765109198,0.02838807,94966.0,94965.0,0.0018557]
[1732765109479,0.00938807,94966.0,94965.0,0.0008557]
[1732765109740,0.00638807,94966.0,94965.0,0.25121018]
[1732765109955,0.01,95003.0,94965.0,0.32990918]
[1732765110203,0.01,95008.0,94984.0,0.10528]
[1732765110437,0.115254,95008.0,94984.0,0.20812521]
[1732765110653,0.01,95008.0,94984.0,0.29310863]
[1732765111129,0.115255,95008.0,94984.0,0.29310863]
[1732765111360,0.01,95008.0,94984.0,0.29310863]
[1732765111610,0.01,95013.0,94984.0,0.29310863]
[1732765111830,0.01,95008.0,94984.0,0.31463267]
[1732765112051,0.105256,95007.0,94984.0,0.31463267]
[1732765112281,0.105255,95007.0,94984.0,0.31463267]
[1732765112509,0.220509,95008.0,94984.0,0.32363267]
[1732765112510,0.01,95008.0,94984.0,0.32363267]
[1732765112731,0.210498,95013.0,94984.0,0.32363267]
[1732765112732,0.1079938,94985.0,94984.0,0.09398342]
[1732765112956,0.1179938,94985.0,94984.0,0.009]
[1732765113183,0.02005464,94985.0,94984.0,0.026]
[1732765113410,0.00905464,94985.0,94984.0,0.017]
[1732765113645,0.00805464,94985.0,94984.0,0.21712521]
[1732765113859,0.01005464,94985.0,94984.0,0.29695163]
[1732765114083,0.0037148,94985.0,94984.0,0.28795163]
[1732765114299,0.0047148,94985.0,94984.0,0.28795163]
[1732765114747,0.01014975,94985.0,94984.0,0.28795163]
[1732765114979,0.0047148,94985.0,94984.0,0.28795163]
[1732765115240,0.0047148,94985.0,94984.0,0.18267163]
[1732765115456,0.0047148,94985.0,94984.0,0.11884521]
[1732765115681,0.0027148,94985.0,94984.0,0.21512521]
[1732765115967,0.00716053,94985.0,94984.0,0.20812521]
[1732765116183,0.00716053,94985.0,94984.0,0.25899473]
[1732765116184,0.0027148,94985.0,94984.0,0.25899473]
[1732765116398,0.00816053,94985.0,94984.0,0.15371473]
[1732765116613,0.0027148,94985.0,94984.0,0.15271473]
[1732765116851,0.1079938,94985.0,94984.0,0.05386952]
[1732765117059,0.11343953,94985.0,94984.0,0.012]
[1732765117292,0.12343953,94985.0,94984.0,0.012]
[1732765117513,0.12243953,94985.0,94984.0,0.004]
[1732765117735,0.105289,94976.0,94975.0,0.02149667]
[1732765118160,0.21599509,94976.0,94966.0,0.0008573]
[1732765118393,0.105294,94972.0,94967.0,0.14007565]
[1732765118623,0.00540502,94971.0,94967.0,0.14007565]
[1732765118843,0.210586,94973.0,94968.0,0.02595598]
[1732765119079,0.210586,94973.0,94967.0,0.14007565]
[1732765119080,0.105295,94971.0,94970.0,0.02129051]
[1732765119522,0.105294,94972.0,94970.0,0.02129051]
[1732765119739,0.105294,94972.0,94971.0,0.02311517]
[1732765120596,0.0017148,94985.0,94971.0,0.12596038]
[1732765120820,0.0017148,94985.0,94972.0,0.10284521]
[1732765121069,0.0017148,94985.0,94979.0,0.105285]
[1732765121534,0.1069938,94985.0,94973.0,0.24665402]
[1732765121745,0.0017148,94985.0,94976.0,0.210579]
[1732765121963,0.0017148,94985.0,94984.0,0.10528]
[1732765122188,0.0017148,94985.0,94984.0,0.20812521]
[1732765122918,0.0047148,94985.0,94984.0,0.20812521]
[1732765123349,0.0047148,94985.0,94984.0,0.10284521]
[1732765123611,0.0047148,94985.0,94973.0,0.03607002]
[1732765123844,0.0047148,94985.0,94965.0,0.0008557]
[1732765123845,0.0017148,94985.0,94984.0,0.10528]
[1732765124065,0.0017148,94985.0,94984.0,0.20812521]
[1732765124491,0.0017148,94985.0,94972.0,0.210588]
[1732765124720,0.105284,94982.0,94975.0,0.105289]
[1732765124948,0.0017148,94985.0,94976.0,0.10284521]
[1732765124949,0.105285,94980.0,94976.0,0.10284521]
[1732765125181,0.11221362,94981.0,94976.0,0.10284521]
[1732765125430,0.00692418,94979.0,94977.0,0.11770057]
[1732765125636,0.0017148,94985.0,94978.0,0.10284521]
[1732765126105,0.10528,94984.0,94978.0,0.10284521]
[1732765126395,0.105283,94982.0,94979.0,0.04331308]
[1732765126641,0.105285,94980.0,94979.0,0.04331308]
[1732765126887,0.105287,94978.0,94977.0,0.01541357]
[1732765127316,0.01,94974.0,94966.0,0.0008573]
[1732765127536,0.105299,94967.0,94966.0,0.0008573]
[1732765127754,0.115299,94967.0,94966.0,0.0008573]
[1732765128929,0.115299,94967.0,94966.0,0.0018573]
[1732765129363,0.120299,94967.0,94966.0,0.0018573]
[1732765129838,0.37047442,94967.0,94966.0,0.0008573]
[1732765130070,0.40514421,94967.0,94966.0,0.0008573]
[1732765130291,0.40714421,94967.0,94966.0,0.0008573]
[1732765130524,0.42259116,94967.0,94966.0,0.0008573]
[1732765130728,0.42059116,94967.0,94966.0,0.0008573]
[1732765131164,0.42359116,94967.0,94966.0,0.0008573]
[1732765131400,0.41959116,94967.0,94966.0,0.0008573]
[1732765131635,0.42459116,94967.0,94966.0,0.0008573]
[1732765131871,0.41959116,94967.0,94966.0,0.0008573]
[1732765132330,0.42859116,94967.0,94966.0,0.0018573]
[1732765132554,0.43859116,94967.0,94966.0,0.0008573]
[1732765132785,0.44459116,94967.0,94966.0,0.0018573]
[1732765133248,0.44459116,94967.0,94966.0,0.0028573]
[1732765133249,0.45259116,94967.0,94966.0,0.0028573]
[1732765133719,0.03,94966.0,94965.0,1e-06]
[1732765134007,0.41347586,94966.0,94965.0,1e-06]
[1732765134221,0.41114521,94966.0,94965.0,1e-06]
[1732765135772,0.41114521,94966.0,94965.0,0.001001]
[1732765135980,0.42014521,94966.0,94965.0,0.001001]
[1732765136191,0.42014521,94966.0,94965.0,1e-06]
[1732765136398,0.42014521,94966.0,94965.0,0.001001]
[1732765136601,0.43814521,94966.0,94965.0,0.002001]
[1732765136816,0.42014521,94966.0,94965.0,0.001001]
[1732765137462,0.42914521,94966.0,94965.0,0.002001]
[1732765137906,0.41014521,94966.0,94965.0,0.001001]
[1732765138114,0.42014521,94966.0,94965.0,0.001001]
[1732765138614,0.115338,94932.0,94917.0,0.0021672]
[1732765138824,0.40351418,94932.0,94917.0,0.0021672]
[1732765139035,0.40118321,94932.0,94917.0,0.0021672]
[1732765139275,0.41118321,94932.0,94917.0,0.0021672]
[1732765139964,0.42018321,94932.0,94931.0,0.0014]
[1732765140186,0.41118321,94932.0,94931.0,0.0004]
[1732765140854,0.41118321,94932.0,94931.0,0.0014]
[1732765141079,0.42018321,94932.0,94931.0,0.0014]
[1732765141302,0.43562972,94932.0,94931.0,0.0014]
[1732765141534,0.43562972,94932.0,94931.0,0.0004]
[1732765141535,0.42662972,94932.0,94931.0,0.0004]
[1732765142559,0.43562972,94932.0,94931.0,0.0004]
[1732765142782,0.42662972,94932.0,94931.0,0.0004]
[1732765143037,0.43562972,94932.0,94931.0,0.0004]
[1732765143248,0.44462972,94932.0,94931.0,0.0004]
[1732765143477,0.42662972,94932.0,94931.0,0.0004]
[1732765143705,0.43562972,94932.0,94931.0,0.0004]
[1732765143934,0.39262972,94932.0,94931.0,0.0004]
[1732765144172,0.40162972,94932.0,94931.0,0.0004]
[1732765144630,0.39262972,94932.0,94931.0,0.0004]
[1732765144888,0.40162972,94932.0,94931.0,0.0004]
[1732765145125,0.133338,94932.0,94931.0,0.0004]
[1732765145349,0.1356688,94932.0,94931.0,0.0004]
[1732765145563,0.124338,94932.0,94931.0,0.0004]
[1732765146289,0.115338,94932.0,94931.0,0.0004]
[1732765146532,0.115338,94932.0,94931.0,0.106739]
[1732765146533,0.018,94932.0,94931.0,0.106739]
[1732765146812,0.009,94932.0,94931.0,0.26363916]
[1732765147053,0.01,94947.0,94933.0,0.210673]
[1732765147327,0.01,94947.0,94934.0,0.10284521]
[1732765147539,0.01,94947.0,94935.0,0.24766732]
[1732765147761,0.01,94947.0,94938.0,0.10533]
[1732765147762,0.105324,94945.0,94938.0,0.10533]
[1732765147979,0.01,94953.0,94948.0,0.10532]
[1732765148192,0.01,94953.0,94935.0,0.03699732]
[1732765148193,0.105309,94959.0,94949.0,0.10284521]
[1732765148408,0.105309,94959.0,94950.0,0.01028452]
[1732765148409,0.105308,94959.0,94950.0,0.01028452]
[1732765148633,0.01,94962.0,94951.0,0.10284521]
[1732765148865,0.105308,94959.0,94953.0,0.105314]
[1732765149086,0.10531,94958.0,94954.0,0.04290807]
[1732765149588,0.002,94959.0,94955.0,0.10284521]
[1732765149808,0.002,94959.0,94958.0,0.105309]
[1732765150025,0.01,94981.0,94958.0,0.10284521]
[1732765150235,0.01,94981.0,94955.0,0.02638296]
[1732765150236,0.210568,94981.0,94967.0,0.210598]
[1732765150456,0.01,94984.0,94968.0,0.10284521]
[1732765150698,0.01,94973.0,94950.0,0.02099871]
[1732765150919,0.01,94973.0,94951.0,0.10284521]
[1732765151154,0.105292,94974.0,94951.0,0.10284521]
[1732765151386,0.01,95006.0,94970.0,0.105295]
[1732765151387,0.105288,94977.0,94970.0,0.105295]
[1732765151632,0.003,94981.0,94972.0,0.210588]
[1732765151869,0.003,94981.0,94980.0,0.105285]
[1732765152112,0.003,94981.0,94980.0,0.20813021]
[1732765152323,0.003,94981.0,94980.0,0.10284521]
[1732765152537,0.003,94981.0,94980.0,0.20813021]
[1732765152749,0.0017148,94985.0,94982.0,0.105283]
[1732765152979,0.1069956,94983.0,94982.0,0.14471503]
[1732765153201,0.1069956,94983.0,94980.0,0.02090181]
[1732765153202,0.105284,94981.0,94972.0,0.105294]
[1732765153453,0.105284,94981.0,94968.0,0.210596]
[1732765153454,0.0017146,94983.0,94980.0,0.005]
[1732765153721,0.105283,94982.0,94980.0,0.005]
[1732765153944,0.0017146,94983.0,94980.0,0.02431372]
[1732765154191,0.0017146,94983.0,94982.0,0.105283]
[1732765154479,0.0017146,94983.0,94982.0,0.20812821]
[1732765154715,0.0017148,94985.0,94984.0,0.10528]
[1732765154968,0.0017148,94985.0,94984.0,0.20812521]
[1732765155179,0.0017148,94985.0,94984.0,0.41599423]
[1732765155394,0.0017148,94985.0,94984.0,0.26599423]
[1732765156077,0.0027148,94985.0,94984.0,0.27499423]
[1732765156318,0.0013248,94985.0,94984.0,0.26599423]
[1732765156757,0.0023248,94985.0,94984.0,0.27499423]
[1732765157697,0.0017142,95020.0,95014.0,0.105247]
[1732765157920,0.0017142,95020.0,95019.0,0.105242]
[1732765158606,0.0017142,95020.0,95019.0,0.20808721]
[1732765159074,0.01,95016.0,95001.0,0.02151789]
[1732765159293,0.0017142,95020.0,95002.0,0.10284521]
[1732765159512,0.00476607,95015.0,95014.0,0.105247]
[1732765159726,0.0117142,95020.0,95009.0,0.105252]
[1732765159936,0.0117142,95020.0,95010.0,0.13576534]
[1732765160165,0.10525,95011.0,95010.0,0.03292013]
[1732765160414,0.00232843,95019.0,94988.0,0.105276]
[1732765160415,0.01,95003.0,94988.0,0.105276]
[1732765160672,0.105278,94986.0,94977.0,0.105288]
[1732765160859,0.105278,94986.0,94966.0,0.1053]
[1732765160860,0.105291,94975.0,94966.0,0.1053]
[1732765161107,0.01,94986.0,94969.0,0.105297]
[1732765161108,0.105289,94977.0,94969.0,0.105297]
[1732765161328,0.00469992,94974.0,94970.0,0.10284521]
[1732765161510,0.220561,94984.0,94971.0,0.105294]
[1732765161765,0.105291,94975.0,94972.0,0.10284521]
[1732765161996,0.10529,94976.0,94972.0,0.10284521]
[1732765162211,0.00469992,94974.0,94972.0,0.10284521]
[1732765162449,0.210568,94981.0,94973.0,0.01028452]
[1732765162691,0.10529,94976.0,94973.0,0.01028452]
[1732765163141,0.105287,94978.0,94973.0,0.01028452]
[1732765163367,0.105287,94978.0,94974.0,0.02392048]
[1732765164036,0.001,94976.0,94974.0,0.02392048]
[1732765164248,0.001,94976.0,94975.0,0.20813521]
[1732765164468,0.105267,94997.0,94975.0,0.10284521]
[1732765164721,0.01,95000.0,94991.0,0.105272]
[1732765164971,0.01,95000.0,94976.0,0.04529242]
[1732765164972,0.0017142,95023.0,94992.0,0.10284521]
[1732765165215,0.01,95013.0,95003.0,0.105259]
[1732765165423,0.01,95013.0,95004.0,0.0105259]
[1732765165640,0.105254,95008.0,95004.0,0.0105259]
[1732765165861,0.10526,95003.0,94995.0,0.105268]
[1732765166073,0.105253,95009.0,95002.0,0.10526]
[1732765166283,0.210501,95011.0,94996.0,0.14471103]
[1732765166284,0.009,95011.0,94996.0,0.14471103]
[1732765166491,0.003,94997.0,94996.0,0.24997803]
[1732765166716,0.009,95011.0,94991.0,0.105273]
[1732765166717,0.009,95006.0,94991.0,0.105273]
[1732765166924,0.210517,95004.0,94992.0,0.13655005]
[1732765167138,0.105264,95000.0,94992.0,0.24182105]
[1732765167354,0.0017142,94998.0,94993.0,0.06841525]
[1732765167591,0.0017142,94998.0,94997.0,0.105266]
[1732765167811,0.0017142,94998.0,94997.0,0.20811121]
[1732765168045,0.0017142,94998.0,94997.0,0.10284521]
[1732765168282,0.0017142,94998.0,94997.0,0.26734596]
[1732765169412,0.0017142,94998.0,94997.0,0.26834596]
[1732765169879,0.0017142,94998.0,94997.0,0.26934596]
[1732765170059,0.0027142,94998.0,94997.0,0.27634596]
[1732765170559,0.0017142,94998.0,94997.0,0.26734596]
[1732765170780,0.0017142,94998.0,94997.0,0.16207996]
[1732765171002,0.0017142,94998.0,94997.0,0.16607996]
[1732765171424,0.0017142,94998.0,94997.0,0.16207996]
[1732765171657,0.0017142,94998.0,94997.0,0.26734596]
[1732765172140,0.0027142,94998.0,94997.0,0.16907996]
[1732765172416,0.1069792,94998.0,94997.0,0.05923475]
[1732765172632,0.1079792,94998.0,94997.0,0.007]
[1732765172846,0.11266271,94998.0,94997.0,0.011]
[1732765173055,0.11166271,94998.0,94997.0,0.004]
[1732765173292,0.12304719,94998.0,94997.0,0.004]
[1732765173512,0.12404719,94998.0,94997.0,0.007]
[1732765173751,0.114279,94985.0,94977.0,0.02096815]
[1732765174213,0.1212768,94985.0,94977.0,0.02096815]
[1732765174646,0.0159978,94985.0,94978.0,0.105286]
[1732765174897,0.1212768,94985.0,94984.0,0.01356823]
[1732765177269,0.002,94985.0,94984.0,0.0008571]
[1732765177502,0.0089978,94985.0,94984.0,0.0008571]
[1732765177747,0.0079978,94985.0,94984.0,0.0008571]
[1732765177986,0.001,94985.0,94984.0,0.02200001]
[1732765178452,0.0017142,94998.0,94984.0,0.02200001]
[1732765178453,0.0017142,94998.0,94984.0,0.12484522]
[1732765178694,0.21054,94994.0,94985.0,0.10284521]
[1732765179189,0.105276,94988.0,94985.0,0.10284521]
[1732765179421,0.00701957,94993.0,94985.0,0.10284521]
[1732765179670,0.11228025,94987.0,94985.0,0.10284521]
[1732765179907,0.11228025,94987.0,94986.0,0.01037023]
[1732765179908,0.105277,94987.0,94986.0,0.01037023]
[1732765180170,0.105276,94989.0,94986.0,0.11321544]
[1732765180403,0.21054,94994.0,94987.0,0.02193565]
[1732765180404,0.105275,94990.0,94987.0,0.02193565]
[1732765180633,0.105276,94988.0,94987.0,0.02193565]
[1732765180858,0.009,94996.0,94987.0,0.02193565]
[1732765181088,0.105275,94989.0,94988.0,0.01370082]
[1732765181839,0.009,94996.0,94988.0,0.01370082]
[1732765182088,0.105275,94990.0,94988.0,0.01370082]
[1732765182315,0.105275,94990.0,94989.0,0.02236831]
[1732765182570,0.0017142,94998.0,94993.0,0.10527]
[1732765182800,0.0017142,94998.0,94990.0,0.31339321]
[1732765183032,0.1069792,94998.0,94991.0,0.15998946]
[1732765183256,0.0017142,94998.0,94991.0,0.15756267]
[1732765183507,0.1069792,94998.0,94991.0,0.26283467]
[1732765183745,0.1069792,94998.0,94992.0,0.04733907]
[1732765183976,0.0017142,94998.0,94992.0,0.04733907]
[1732765184216,0.105266,94997.0,94992.0,0.04733907]
[1732765184490,0.0017142,94998.0,94992.0,0.04733907]
[1732765184491,0.105267,94996.0,94992.0,0.04733907]
[1732765184749,0.105267,94996.0,94993.0,0.05217327]
[1732765185210,0.0017142,94998.0,94994.0,0.105269]
[1732765185431,0.0017142,94998.0,94993.0,0.05217327]
[1732765185650,0.0017142,94998.0,94993.0,0.15744327]
[1732765186300,0.1069792,94998.0,94993.0,0.05217327]
[1732765186520,0.1069792,94998.0,94994.0,0.04708365]
[1732765186733,0.1099792,94998.0,94994.0,0.04708365]
[1732765186955,0.1069792,94998.0,94994.0,0.04708365]
[1732765187660,0.1069792,94998.0,94993.0,0.003]
[1732765187661,0.0017142,94998.0,94993.0,0.001]
[1732765187883,0.0017142,94998.0,94991.0,0.10284521]
[1732765188102,0.0017142,94998.0,94995.0,0.02058412]
[1732765188320,0.00698656,94997.0,94996.0,0.03369753]
[1732765188559,0.105267,94996.0,94995.0,0.02058412]
[1732765188776,0.11225084,94996.0,94995.0,0.02058412]
[1732765189208,0.00698384,94996.0,94995.0,0.02058412]
[1732765189420,0.00698384,94996.0,94995.0,0.04375435]
[1732765189637,0.105266,94997.0,94995.0,0.04375435]
[1732765190061,0.0069894,94996.0,94995.0,0.04375435]
[1732765190494,0.0069894,94996.0,94995.0,0.04575435]
[1732765190711,0.0069894,94996.0,94995.0,0.15002235]